Workbook

Sheet Sheet1
E1: Find the principal points and focal points of a lens in the paraxial approximation:
C2: lens drawing
C3: x | D3: z
A4: R1 (cm) | B4: 3 | C4: 1.3 | D4: =-SIGN($B$4)*SQRT($B$4^2-C4^2)+$B$4 -> 0.2962988331
A5: R2 (cm) | B5: -3 | C5: =C4-0.1 -> 1.2 | D5: =-SIGN($B$4)*SQRT($B$4^2-C5^2)+$B$4 -> 0.250454583
A6: D (cm) | B6: 1 | C6: =C5-0.1 -> 1.1 | D6: 0.2089428526
A7: n1 | B7: 1 | C7: 1 | D7: 0.1715728753
A8: n2 | B8: 1 | C8: 0.9 | D8: 0.1381823957
A9: n' | B9: 1.5 | C9: 0.8 | D9: 0.108633541
A10: P | B10: =(B9-B7)/B4 -> 0.1666666667 | C10: 0.7 | D10: 0.08280957084
A11: P' | B11: =(B8-B9)/B5 -> 0.1666666667 | C11: 0.6 | D11: 0.06061230866
A12: Psyst | B12: =B10+B11-B10*B11*B6/B9 -> 0.3148148148 | C12: 0.5 | D12: 0.04196010845
A13: D1 | B13: =-B11*B6/(B12*B9) -> -0.3529411765 | C13: 0.4 | D13: 0.02678625054
A14: D2 | B14: =-B10*B6/(B12*B9) -> -0.3529411765 | C14: 0.3 | D14: 0.01503768868
A15: t | B15: =B6*(1-(B10+B11)/(B9*B12)) -> 0.2941176471 | C15: 0.2 | D15: 0.006674090581
C16: 0.1 | D16: 0.001667129887
A17: f | B17: =B7/B12 -> 3.176470588 | C17: 0 | D17: 0
A18: f' | B18: =B8/B12 -> 3.176470588 | C18: -0.1 | D18: 0.001667129887
C19: -0.2 | D19: 0.006674090581
C20: -0.3 | D20: 0.01503768868
C21: -0.4 | D21: 0.02678625054
C22: -0.5 | D22: 0.04196010845
C23: -0.6 | D23: 0.06061230866
C24: -0.7 | D24: 0.08280957084
C25: -0.8 | D25: 0.108633541 | G25: z coordinate of:
C26: =C25-0.1 -> -0.9 | D26: 0.1381823957 | F26: Plane 1 (H) | I26: F | L26: orange line: | M26: H
C27: -1 | D27: 0.1715728753 | F27: =-B13 -> 0.3529411765 | G27: 1.5 | I27: =-B13-B17 -> -2.823529412 | J27: 0 | L27: green line: | M27: H'
C28: -1.1 | D28: 0.2089428526 | F28: =-B13 -> 0.3529411765 | G28: -1.5 | L28: red dot: | M28: F
C29: -1.2 | D29: 0.250454583 | L29: blue dot | M29: F'
C30: -1.3 | D30: 0.2962988331 | F30: Plane 2 (H') | I30: F'
C31: -1.3 | D31: =-SIGN($B$5)*SQRT($B$5^2-C31^2)+$B$5+$B$6 -> 0.7037011669 | F31: =-B13+B15 -> 0.6470588235 | G31: 1.5 | I31: =B6+B14+B18 -> 3.823529412 | J31: 0
C32: =C31+0.1 -> -1.2 | D32: =-SIGN($B$5)*SQRT($B$5^2-C32^2)+$B$5+$B$6 -> 0.749545417 | F32: =-B13+B15 -> 0.6470588235 | G32: -1.5
C33: =C32+0.1 -> -1.1 | D33: 0.7910571474
C34: -1 | D34: 0.8284271247 | F34: .
C35: -0.9 | D35: 0.8618176043 | G35: .
C36: -0.8 | D36: 0.891366459
C37: -0.7 | D37: 0.9171904292 | F37: .
C38: -0.6 | D38: 0.9393876913
C39: -0.5 | D39: 0.9580398915
C40: -0.4 | D40: 0.9732137495
C41: -0.3 | D41: 0.9849623113
C42: -0.2 | D42: 0.9933259094
C43: -0.1 | D43: 0.9983328701
C44: 0 | D44: 1
C45: 0.1 | D45: 0.9983328701
C46: 0.2 | D46: 0.9933259094
C47: 0.3 | D47: 0.9849623113
C48: 0.4 | D48: 0.9732137495
C49: 0.5 | D49: 0.9580398915
C50: 0.6 | D50: 0.9393876913
C51: 0.7 | D51: 0.9171904292
C52: 0.8 | D52: 0.891366459
C53: 0.9 | D53: 0.8618176043
C54: 1 | D54: 0.8284271247
C55: 1.1 | D55: 0.7910571474
C56: 1.2 | D56: 0.749545417
C57: 1.3 | D57: 0.7037011669
C58: 1.3 | D58: =-SIGN($B$4)*SQRT($B$4^2-C58^2)+$B$4 -> 0.2962988331
